Cogmind - Beta 12 @@@ ROGUE MODE // 2023.03.14 @ 17:27:33 Player: derk Result: Destroyed by D-53 Grenadier with Mini Grenade Launcher Performance ------------- Evolutions (0) 0 Regions Visited (2) 400 Robots Destroyed (21) 105 Value Destroyed (274) 274 Prototype IDs (0) 0 Alien Tech Used (0) 0 Bonus (0) 0 TOTAL SCORE: 779 Bonus ------- None Cogmind --------- Core Integrity 0/250 Matter 275/300 Energy 80/100 System Corruption 4% Temperature Cool (0) Movement Rolling (110) Ox2 Location -10/Mines Parts ------- > --- POWER (1) -------- (None) > --- PROPULSION (2) --- Wheel > --- UTILITY (2) ------ Improved Heat Sink Large Storage Unit > --- WEAPON (2) ------- (None) > --- INVENTORY (15) --- Improved Ion Engine Improved Ion Engine Light Treads Compact Wheel Seismic Detector Light Armor Plating EM Shotgun EM Shotgun Particle Cannon Particle Cannon Light Assault Rifle Improved Assault Rifle Improved Assault Rifle Grenade Launcher Peak State ------------ > --- POWER ------------ Light Nuclear Core > --- PROPULSION ------- Light Treads Light Treads > --- UTILITY ---------- Improved Heat Sink Large Storage Unit > --- WEAPON ----------- EM Pulse Gun Particle Cannon > --- INVENTORY -------- Improved Ion Engine Improved Ion Engine Light Treads Aluminum Leg Aluminum Leg Wheel Compact Wheel Small Storage Unit Seismic Detector Light Armor Plating EM Shotgun EM Shotgun Medium Laser Particle Cannon Light Assault Rifle [Rating: 14] Favorites ----------- Power Ion Engine Engine Ion Engine Power Core Light Nuclear Core Propulsion Light Treads Treads Light Treads Utility Large Storage Unit Device Seismic Detector Storage Large Storage Unit Weapon EM Pulse Gun Energy Gun EM Pulse Gun Energy Cannon Particle Cannon Ballistic Gun Light Assault Rifle Launcher Grenade Launcher Build | -11 -10 -10 ------- Run | Jun Mat Min Slots Evolved . | . . . Power . | . . . Propulsion . | . . . Utility . | . . . Weapon . | . . . Parts Attached 17 | 6 9 2 Power 3 | 1 2 . Engine 2 | 1 1 . Core 1 | . 1 . Reactor . | . . . Propulsion 3 | 2 . 1 Treads 2 | 2 . . Leg . | . . . Wheel 1 | . . 1 Hover . | . . . Flight . | . . . Utility 4 | 2 2 . Device 2 | 1 1 . Storage 2 | 1 1 . Processor . | . . . Hackware . | . . . Protection . | . . . Artifact . | . . . Weapon 7 | 1 5 1 Energy Gun 4 | 1 3 . Energy Cannon 1 | . 1 . Ballistic Gun 1 | . 1 . Ballistic Cannon . | . . . Launcher 1 | . . 1 Special Weapon . | . . . Impact Weapon . | . . . Slashing Weapon . | . . . Piercing Weapon . | . . . Special Melee Weapon . | . . . Unidentified Prototypes . | . . . Parts Lost 5 | . . 5 Power 1 | . . 1 Propulsion 2 | . . 2 Utility . | . . . Weapon 2 | . . 2 Highest Loss Streak 5 | . . 5 To Critical Strikes . | . . . Average Slot Usage (%) 99 | . 100 92 Engine 7 | . 8 . Core 5 | . 5 12 Treads 27 | . 28 25 Device 14 | . 14 14 Storage 14 | . 14 14 Energy Gun 21 | . 22 12 Energy Cannon 4 | . 5 2 Launcher 1 | . . 9 Naked Turns . | . . . Heaviest Build 32 | 13 32 32 Greatest Support 40 | 40 40 40 Greatest Overweight (x) 1 | . . 1 Average Overweight (x) . | . . . Largest Inventory Capacity 15 | 8 15 15 Average Capacity 12 | 7 12 15 Most Carried 15 | 7 15 15 Average Carried 10 | 4 10 15 Final Capacity 15 | 8 15 15 Final Carried 15 | 7 15 14 Class Distribution -------------------- 100% | Mutant Dominant Class ---------------- Mutant | -10/Materials Mutant | -10/Mines Resources | -11 -10 -10 ----------- Run | Jun Mat Min Matter Collected 388 | 260 128 . Remotely . | . . . Salvage Created 557 | 157 358 42 Parts 43 | 8 26 9 Haulers Intercepted 1 | . 1 . Recyclers Shooed . | . . . Parts Field Recycled . | . . . Retrieved Matter . | . . . Parts Self-Destructed . | . . . Prevented . | . . . Kills | -11 -10 -10 ------- Run | Jun Mat Min Combat Hostiles Destroyed 12 | . 9 3 Guns 8 | . 8 . AOE 4 | . 1 3 Classes Destroyed 8 | 2 5 1 Worker 2 | . . 2 Tunneler 2 | 2 . . Hauler 1 | . 1 . Recycler 1 | 1 . . Mechanic 1 | . 1 . Operator 2 | . 2 . Swarmer 9 | . 6 3 Grunt 3 | . 3 . Best Kill Streak 5 | 2 4 5 Combat Bots Only 3 | . 3 3 Max Kills in Single Turn 3 | 1 2 3 Gunslinging 1 | . 1 . Exploded 2 | . 1 2 Melee . | . . . Uniques/NPCs Destroyed . | . . . Combat | -11 -10 -10 -------- Run | Jun Mat Min Damage Taken 793 | . 268 525 Core 273 | . 54 219 Absorbed by Shields . | . . . Core Remaining (%) 100 | 100 . . Volleys Fired 43 | 7 33 3 Largest 2 | 1 2 1 Hottest 108 | 40 108 30 Shots Fired 75 | 7 65 3 Gun 67 | 7 60 . Cannon 5 | . 5 . Launcher 3 | . . 3 Special . | . . . Kinetic 8 | . 8 . Thermal 24 | . 24 . Explosive 3 | . . 3 Electromagnetic 40 | 7 33 . Robot Hit Streak 6 | 4 6 2 Robot Miss Streak 3 | 1 3 . Penetration Max . | . . . Secondary Targets 1 | . 1 . Max Gunslinging Chain 1 | . 1 . Shots Hit Robots 40 | 5 34 1 Core Hits 29 | 4 19 6 Critical Kills . | . . . Critical Parts Destroyed . | . . . Critical Strikes . | . . . Melee Attacks . | . . . Impact . | . . . Slashing . | . . . Piercing . | . . . Sneak Attacks . | . . . Combat Hostiles . | . . . Follow-up Attacks . | . . . Damage Inflicted 853 | 65 552 236 Guns 458 | 65 393 . Cannons 83 | . 83 . Explosions 312 | . 76 236 Melee . | . . . Ramming . | . . . Kinetic 35 | . 35 . Thermal 305 | . 305 . Explosive 236 | . . 236 Electromagnetic 277 | 65 212 . Impact . | . . . Slashing . | . . . Piercing . | . . . Highest Corruption 4 | . 4 4 Average Corruption 3 | . 3 4 Corruption Purged . | . . . Corruption Blocked . | . . . Effects 11 | . 11 . Message Errors 4 | . 4 . Matter Fused 4 | . 4 . Heat Flow Errors 1 | . 1 . Energy Discharges 1 | . 1 . Data Loss (minor) 1 | . 1 . Overload Shots . | . . . Overflow Damage 29 | . 3 26 Projectiles . | . . . Explosions 29 | . 3 26 Melee . | . . . Knockbacks . | . . . Impact . | . . . Kinetic . | . . . Secondary . | . . . Self-Inflicted Damage 75 | . 39 36 Shots 2 | . 1 1 Rammed . | . . . Targets Rammed . | . . . Kicked . | . . . Crushed . | . . . Highest Temperature 290 | . 290 . Average Temperature 73 | . 73 . Received Heat Transfer 66 | . 66 . Siege Activations . | . . . Robots Corrupted . | . . . Combat Hostiles . | . . . Parts Fried 1 | 1 . . Impact Corruptions . | . . . Robots Melted . | . . . Combat Hostiles . | . . . Parts Melted 2 | . 2 . Heat Transferred 692 | . 692 . Parts Sabotaged . | . . . Parts Stolen . | . . . Parts Stripped . | . . . Power Chain Reactions 1 | . 1 . Missiles Intercepted . | . . . Alert | -11 -10 -10 ------- Run | Jun Mat Min Peak Influence 187 | 15 187 150 Initial 47 | . 9 47 Average 69 | 7 72 128 Maximum Alert Level . | . . . Low Security (%) 100 | 100 100 100 Level 1 . | . . . Level 2 . | . . . Level 3 . | . . . Level 4 . | . . . Level 5 . | . . . High Security . | . . . Max Security . | . . . Squads Dispatched 3 | . 3 . Investigation 2 | . 2 . Extermination . | . . . Reinforcement 1 | . 1 . Assault . | . . . Garrison . | . . . Intercept . | . . . Searches Triggered . | . . . Construction Impeded . | . . . Haulers Reinforced . | . . . Active Scanning Responses . | . . . Cargo Convoy Interrupts . | . . . Stealth | -11 -10 -10 --------- Run | Jun Mat Min Distress Signals 3 | . 2 1 Communications Jammed . | . . . Distress Signals . | . . . Times Spotted 21 | . 17 4 Peak Tracking Total 4 | . 4 2 Tactical Retreats 1 | . 1 . Traps | -11 -10 -10 ------- Run | Jun Mat Min Traps Triggered 4 | . 4 . Indirectly . | . . . Trap Hack Attempts . | . . . Triggered . | . . . Disarmed . | . . . Reprogrammed . | . . . Reused . | . . . Traps Extracted . | . . . Installed . | . . . Triggered . | . . . Machines | -11 -10 -10 ---------- Run | Jun Mat Min Machines Disabled . | . . . Max in Single Turn . | . . . Machines Repaired . | . . . Machines Sabotaged . | . . . Overloaded Fab Kills . | . . . Hacking | -11 -10 -10 --------- Run | Jun Mat Min Machines Accessed 4 | . 4 . Terminals 3 | . 3 . Fabricators . | . . . Repair Stations . | . . . Recycling Units 1 | . 1 . Scanalyzers . | . . . Garrison Access . | . . . Total Hacks 11 | . 11 . Successful 3 | . 3 . Failed 8 | . 8 . Catastrophic 2 | . 2 . Database Lockouts . | . . . Manual . | . . . Terminals 9 | . 9 . Fabricators . | . . . Repair Stations . | . . . Recycling Units 2 | . 2 . Scanalyzers . | . . . Garrison Access . | . . . Terminal Hacks 3 | . 3 . Robot Analysis 1 | . 1 . Registered Components 1 | . 1 . Zone Layout 1 | . 1 . Fabricator Hacks . | . . . Repair Station Hacks . | . . . Recycling Unit Hacks . | . . . Scanalyzer . | . . . Garrison Access Hacks . | . . . Unauthorized Hacks . | . . . Terminals . | . . . Fabricators . | . . . Repair Stations . | . . . Recycling Units . | . . . Scanalyzers . | . . . Garrison Access . | . . . Data Cores Recovered 1 | . 1 . Used . | . . . Hacking Detections 4 | . 4 . Full Trace Events 1 | . 1 . Feedback Events . | . . . Feedback Blocked . | . . . Robot Schematics Acquired . | . . . Robots Built . | . . . Authchips . | . . . Time . | . . . Total Robot Build Rating . | . . . Part Schematics Acquired . | . . . Parts Built . | . . . Authchips . | . . . Time . | . . . Total Part Build Rating . | . . . Parts Repaired . | . . . Time . | . . . Parts Recycled . | . . . Recycled Matter . | . . . Retrieved Matter . | . . . Retrieved Components . | . . . Parts Scanalyzed . | . . . Part Schematics Acquired . | . . . Parts Damaged . | . . . Bothacking | -11 -10 -10 ------------ Run | Jun Mat Min Used RIF Installer . | . . . Robots Hacked . | . . . Non-combat . | . . . Combat . | . . . Robot Hacks Applied . | . . . Relay Couplers Released . | . . . Fabnet Peak Effective % . | . . . Robots Rewired . | . . . Allies Hacked . | . . . Hacks Repelled . | . . . Allies | -11 -10 -10 -------- Run | Jun Mat Min Total Allies . | . . . Largest Group . | . . . Highest-Rated Group . | . . . Highest-Rated Ally . | . . . Total Orders . | . . . Ally Attacks . | . . . Total Damage . | . . . Kills . | . . . Allies Corrupted . | . . . Allies Melted . | . . . Intel | -11 -10 -10 ------- Run | Jun Mat Min Robot Analysis Total 1 | . 1 . Derelict Logs Recovered . | . . . Drone Launches . | . . . Drone Recoveries . | . . . Exploration | -11 -10 -10 ------------- Run | Jun Mat Min Turns Passed 970 | 127 749 94 Spaces Moved 487 | 65 370 52 Core 5 | 5 . . Treads 482 | 60 370 52 Legs . | . . . Wheels . | . . . Hover . | . . . Flight . | . . . Fastest Speed 50 | 50 160 160 Average Speed 159 | 151 160 164 Slowest Speed 240 | 160 160 240 Overloaded Moves . | . . . Propulsion Burnouts . | . . . Robots Hopped . | . . . Cave-ins Triggered . | . . . Exploration Rate (%) 23 | 5 53 12 Regions Visited 2 Branch Regions 1 Pre-discovered Areas . | . . . Known Exits Taken . | . . . Unknown Exits Taken 2 | 1 1 . Scrap Searched . | . . . Spaces Dug 9 | . . 9 Terrain Destroyed 35 | . 5 30 Melee . | . . . Projectile . | . . . AOE 35 | . 5 30 Terrain Rammed . | . . . Walls Destroyed . | . . . Machines Disabled . | . . . Actions | -11 -10 -10 --------- Run | Jun Mat Min Total 605 | 84 464 57 Wait 32 | . 32 . Move 485 | 64 369 52 Hop . | . . . Pick Up 21 | 7 14 . Fast Attach 6 | 6 . . Attach 2 | . 1 1 Detach . | . . . Swap 9 | . 8 1 Drop 7 | . 7 . Fire 43 | 7 33 3 Melee . | . . . Ram . | . . . Kick . | . . . Crush . | . . . Escape Stasis . | . . . Rewire . | . . . Trap . | . . . Miscellaneous . | . . . Route ------- -11/Junkyard -10/Materials (discovered 2 exits: [*Mat] / [*Min]) -10/Mines (discovered 2 exits: [*Mat] / [*Exi]) History --------- Turn | Location | Event 24 | -11/Junkyard | Discovered new exit (range 16) 128 | -11/Junkyard | Entered Materials 308 | -10/Materials | Build established: Mutant 347 | -10/Materials | Discovered new exit (range 16) 684 | -10/Materials | Discovered new exit (range 16) 877 | -10/Materials | Entered Mines 898 | -10/Mines | Discovered new exit (range 10) 925 | -10/Mines | Deemed a non-threat by the Exiles lab entrance 945 | -10/Mines | Assembled infested the area 950 | -10/Mines | Assisted by a Guerilla fighting off Assembled 963 | -10/Mines | Core integrity fell below 50% 965 | -10/Mines | Discovered new exit (range 7) 969 | -10/Mines | Core integrity fell below 20% 971 | -10/Mines | Destroyed by D-53 Grenadier with Mini Grenade Launcher Last Messages --------------- 00901_ U-05 Engineer builds a Wall. 00905_ The unstable cave ceiling collapses. 00925_ "No threat detected, you may enter." 00945_ ALERT: Infestation in the mines, dispatching Demolisher response squad. 00950_ A derelict emerges from the shadows: "You need to get out of here! I've been tracking a group of Assembled to figure out where they're coming from, and they're closing on this area, come on!" 00958_ 4O-5WI(h): "I'll hold them off! Go on ahead or try to find another way!" 00958_ HV Slug penetrates Wall. 00960_ 4O-5WI(h) destroyed. 00962_ The unstable cave ceiling collapses. 00963_ Lgt. Treads destroyed. 00964_ U-05 Engineer lays Concrete. 00965_ EXIT=FOUND 00967_ EM Pulse Gun destroyed. 00967_ Lgt. Nuclear Core destroyed. 00969_ Grenade Launcher destroyed. 00969_ Lgt. Treads destroyed. Map ----- +----------------------------------------------------+ | ????????????????????????????????????????? | | ????????????????????????????????????????? | | ?????????##?????????????????????????????? | | ????????# ?????????????????????????????? | | ?????### ?????????????????????????????? | | ????## ?????????????????????????????? | | ????# ?????????????????????????????? | | ???## ?????????????????????????????? | | ???# ??????????????????????????????? | | ???# ??????????????????????????????? | | ???# ####???????????????????????????? | | ???# ## ??????#####????????????????? | | ???# #????## ##???????????????? | | ????# ##### #???????????????? | | ?????# ###???????????????? | | ???### ##????#????????????? | | ???# " % #???? #???????????? | | ??#### #??? #??????????? | | ??# # dd #??? ???????????? | | ??# ### #?? ?????????????? | | ??## ## #? ???????????????? | | ??## # # ?????????????????? | | ??# ## #??????????????????? | | ??# [ ## #??????????????????? | | ??## %[ ### #??????????????????? | | ??? % ?# @ #??????????????????? | | ??# =#! #??????????????????? | | ??# # =% # #??????????????????? | | ??### =%= # ##??????????????????? | | ???# ##=%< ##< ####???????????????????? | | ???##### ######??????????????????????? | | ???????# #???????????????????????????? | | ???????######???????????????????????????? | | ????????????????????????????????????????? | | ????????????????????????????????????????? | | | | | | | | | | | | | | | | | | | | | | | | | | | | | | | +----------------------------------------------------+ Best States ------------- Heat Dissipation 39 Energy Generation 14 Energy Capacity 265 Matter Stores 300 Matter Capacity 300 Sight Range 16 Terrain Scan Density 10 Evasion (%) 40 Recoil Reduction 2 Item Schematics ----------------- None Robot Schematics ------------------ None Fabricated ------------ Nothing Alien Tech Used ----------------- None Achievements -------------- None Challenges ------------ None Game ------ Seed LightningRestorationRail Manual? 0 Play Time 00:16:55 Cumulative 332.6 hours Start 2023.03.14 @ 17:09:39 End 2023.03.14 @ 17:27:33 Sessions 1 Manual Loads 0 Difficulty Rogue Special Mode None Game No. 130 Rogue 130 Adventurer 0 Explorer 0 Win Type - Total 12 Types 10/0/1/1/0/0/0/0/0 Lore% 64 Gallery% 81 Achievement% 67 Wizard Run 0 Options --------- ASCII 0 Keyboard 0 Movement Numpad Keybinds 0 Fullscreen 1 Font 18/SmallcapsGlow Map View 76x50 Tactical HUD 1 Map Filters NONE Filters NONE Steam 1 RUN: 8b1ed292-b818-4a4f-8c4a-40f35b985cee